bitfinex/quotes_ETHUSD_20241116
["timestamp","ask_amount","ask_price","bid_price","bid_amount"]
[1731749545780,0.7944,3113.5,3112.6,0.7882]
[1731749545973,0.7944,3113.8,3113.0,3.21232]
[1731749546179,0.7944,3113.8,3113.1,0.38546842]
[1731749546180,3.2117,3113.7,3113.1,0.38546842]
[1731749546631,0.7944,3113.8,3113.2,0.7882]
[1731749546832,4.00591,3113.8,3113.2,4.00031]
[1731749547944,4.00591,3113.8,3113.2,0.7882]
[1731749548251,0.7944,3114.1,3113.3,0.06423525]
[1731749548456,3.21147,3113.9,3113.2,3.7882]
[1731749548683,3.21147,3113.9,3113.3,0.700038]
[1731749548992,3.21147,3113.9,3113.3,3.912038]
[1731749549153,0.7944,3114.4,3113.3,0.700038]
[1731749549354,3.99692,3113.8,3113.2,0.7882]
[1731749549553,0.7854,3113.8,3112.8,0.7507]
[1731749549751,3.21178,3113.6,3112.9,6.21241]
[1731749549986,3.21178,3113.6,3113.0,1.017563]
[1731749550687,3.99669,3114.1,3113.2,0.7507]
[1731749550873,3.21099,3114.4,3113.2,0.7507]
[1731749550874,3.211,3114.3,3113.3,0.06423392]
[1731749551038,3.211,3114.3,3113.7,0.7507]
[1731749551243,0.7854,3114.4,3113.8,0.06422671]
[1731749551548,3.21081,3114.5,3113.8,3.27571671]
[1731749552181,3.21092,3114.4,3113.8,3.27571671]
[1731749552362,3.21092,3114.4,3113.8,3.21149]
[1731749553477,3.21092,3114.4,3113.8,3.928878]
[1731749554178,3.21092,3114.4,3113.8,0.717388]
[1731749554361,3.21092,3114.4,3113.7,0.7507]
[1731749554362,3.21092,3114.4,3113.7,3.96229]
[1731749554560,3.21079,3114.5,3113.8,3.2115]
[1731749554788,0.7854,3114.7,3113.9,3.21135]
[1731749554948,3.21069,3114.6,3114.0,3.2113]
[1731749555295,3.21069,3114.6,3113.8,3.27572124]
[1731749555296,3.21066,3114.7,3113.8,3.2115]
[1731749555443,3.21066,3114.7,3113.8,3.928889]
[1731749555958,3.21096,3114.4,3113.7,0.7507]
[1731749556167,0.55,3114.8,3113.7,3.96231]
[1731749556350,3.21099,3114.3,3113.7,3.96231]
[1731749557120,3.21099,3114.3,3113.8,0.06422359]
[1731749557277,0.55,3114.8,3113.8,0.06422359]
[1731749557479,3.21099,3114.4,3113.7,0.7507]
[1731749557850,3.21099,3114.4,3113.7,3.7507]
[1731749558047,3.2112,3114.1,3113.7,0.7507]
[1731749558285,3.21148,3113.9,3113.5,3.0]
[1731749558492,3.2112,3114.1,3113.4,0.8037]
[1731749558493,3.21151,3113.8,3113.4,0.8037]
[1731749558853,0.7987,3113.9,3113.4,0.8037]
[1731749559054,3.21135,3114.0,3113.5,0.23910393]
[1731749559293,0.7987,3114.1,3113.4,4.0156]
[1731749559465,0.7987,3114.1,3113.5,0.30330002]
[1731749559663,0.7987,3114.4,3113.6,0.23906752]
[1731749559909,3.2111,3114.2,3113.6,3.21164]
[1731749560074,3.2111,3114.2,3113.5,3.2760125]
[1731749560260,3.2111,3114.2,3113.6,0.23906278]
[1731749560460,4.00959,3114.4,3113.5,3.2760125]
[1731749560683,3.2112,3114.1,3113.5,3.21178]
[1731749560885,3.2112,3114.1,3113.5,3.27600948]
[1731749561454,3.2112,3114.1,3113.4,3.8037]
[1731749561770,3.21149,3113.9,3113.4,0.8037]
[1731749561964,0.7987,3113.8,3113.2,6.21211]
[1731749562182,3.21149,3113.9,3113.4,3.0]
[1731749562369,3.21112,3114.2,3113.6,0.8037]
[1731749562574,3.21112,3114.2,3113.6,4.01541]
[1731749563367,0.43840903,3114.3,3113.7,0.06422668]
[1731749563582,4.0096,3114.4,3113.7,0.06422668]
[1731749563808,3.211,3114.3,3113.7,0.06422668]
[1731749564307,3.211,3114.3,3113.7,0.0642249]
[1731749564509,3.21126,3114.1,3113.6,0.8037]
[1731749565572,0.7987,3114.3,3113.7,0.06422839]
[1731749565883,3.2109,3114.4,3114.0,0.8037]
[1731749566307,3.21076,3114.6,3114.0,0.8037]
[1731749568187,3.21076,3114.6,3114.0,0.86791901]
[1731749568401,0.27360872,3114.8,3114.4,3.21083]
[1731749568576,0.27360872,3114.8,3114.7,3.21058]
[1731749568771,0.27360872,3114.8,3114.7,3.93692883]
[1731749568970,0.27360872,3114.8,3114.7,3.21058]
[1731749569171,0.27360872,3114.8,3114.7,3.27478527]
[1731749569408,0.27360872,3114.8,3114.7,3.21058]
[1731749569617,0.27360872,3114.8,3114.6,3.27480392]
[1731749570205,0.27360872,3114.8,3114.7,3.21058]
[1731749570573,0.27360872,3114.8,3114.7,4.71502839]
[1731749570878,0.27360872,3114.8,3114.7,7.71502839]
[1731749571913,0.27360872,3114.8,3114.7,8.09765583]
[1731749574227,0.27360872,3114.8,3114.7,7.71502839]
[1731749574920,0.27360872,3114.8,3114.7,8.09779321]
[1731749575224,0.27360872,3114.8,3114.7,0.7781]
[1731749575407,0.27360872,3114.8,3114.6,0.06420507]
[1731749575977,0.27360872,3114.8,3114.7,3.21058]
[1731749577800,0.27360872,3114.8,3114.7,4.57848]
[1731749578150,0.27360872,3114.8,3114.7,5.95331826]
[1731749579947,0.27360872,3114.8,3114.7,8.95331826]
[1731749583000,0.27360872,3114.8,3114.7,9.27411826]
[1731749583208,0.27360872,3114.8,3114.7,8.96331826]
[1731749583501,0.27360872,3114.8,3114.7,9.12372961]
[1731749583931,0.27360872,3114.8,3114.7,12.49972961]
[1731749584248,0.27360872,3114.8,3114.7,12.82052961]
[1731749584545,0.27360872,3114.8,3114.7,12.83052961]
[1731749584546,8.72e-06,3114.8,3114.7,12.83052961]
[1731749584747,17.205,3115.5,3115.4,7.57776]
[1731749584919,17.76,3115.5,3115.4,8.656542]
[1731749587232,18.315,3115.5,3115.4,8.81690595]
[1731749587410,18.315,3115.5,3115.4,8.656542]
[1731749587616,18.315,3115.5,3115.4,8.81691415]
[1731749589357,18.87,3115.5,3115.4,8.81691415]
[1731749589558,16.49378164,3115.5,3115.4,8.81691415]
[1731749590356,16.49378164,3115.5,3115.4,12.032542]
[1731749590539,3.32417277,3116.8,3116.2,3.20903]
[1731749590742,3.32417277,3116.8,3116.2,7.43226751]
[1731749590922,3.32417277,3116.8,3116.2,10.43226751]
[1731749593552,1.11,3116.3,3116.2,10.44226751]
[1731749593735,1.11,3116.3,3116.2,10.61259628]
[1731749595622,1.665,3116.3,3116.2,10.61259628]
[1731749596155,1.665,3116.3,3116.2,10.60259628]
[1731749596359,1.665,3116.3,3116.2,10.92339628]
[1731749596710,1.665,3116.3,3116.2,7.30813]
[1731749596948,1.665,3116.3,3116.2,6.20903]
[1731749597654,1.665,3116.3,3116.2,3.20903]
[1731749597825,2.22,3116.3,3116.2,3.20903]
[1731749598032,2.22,3116.3,3116.2,38.20903]
[1731749598351,2.22,3116.3,3116.2,38.75903]
[1731749598719,2.22,3116.3,3116.2,41.65396751]
[1731749598920,2.22,3116.3,3116.2,44.65396751]
[1731749599348,2.22,3116.3,3116.2,38.55]
[1731749599839,3.0247,3116.3,3116.2,3.0]
[1731749600160,3.88217,3116.3,3115.3,3.20993]
[1731749600315,3.88217,3116.3,3115.3,38.20993]
[1731749600316,3.20926,3116.0,3115.3,38.20993]
[1731749600517,3.20951,3115.8,3115.1,6.10506751]
[1731749600755,0.8047,3115.7,3115.1,3.21013]
[1731749601067,3.20966,3115.6,3115.1,35.0]
[1731749602019,3.76466,3115.6,3115.1,35.0]
[1731749604060,0.8047,3115.4,3115.1,35.0]
[1731749604224,0.8047,3115.1,3114.4,3.2108]
[1731749604422,4.01487,3115.1,3114.5,0.06420531]
[1731749604753,4.01487,3115.1,3114.6,35.32750053]
[1731749605515,0.8047,3115.1,3114.7,3.82477534]
[1731749605752,0.8047,3115.1,3115.0,0.55]
[1731749605959,0.8047,3115.4,3115.0,0.926034]
[1731749606140,0.8047,3115.4,3115.0,0.55]
[1731749606730,0.8047,3115.4,3114.7,0.55]
[1731749607776,1.11,3115.6,3115.0,0.55]
[1731749607942,0.555,3115.5,3115.2,0.55]
[1731749610165,1.11,3115.5,3115.2,0.55]
[1731749610496,1.11,3115.5,3115.2,3.75998]
[1731749611657,1.11,3115.5,3115.1,3.76016]
[1731749611842,1.11,3115.5,3115.2,3.21006]
[1731749612045,1.11,3115.5,3115.4,3.75986]
[1731749612269,1.665,3115.5,3115.4,3.75986]
[1731749613980,1.665,3115.5,3115.4,0.55]
[1731749614136,2.4559,3115.5,3115.3,35.0]
[1731749614341,3.20996,3115.3,3114.5,1.28332]
[1731749614548,0.7909,3114.9,3114.5,1.28332]
[1731749614765,0.7909,3114.9,3114.6,0.449417]
[1731749615172,0.7909,3114.9,3114.6,3.660067]
[1731749615534,0.7909,3114.9,3114.6,0.449417]
[1731749615742,0.7909,3114.9,3114.7,0.55]
[1731749616582,0.7909,3114.9,3114.5,3.0]
[1731749616583,3.21054,3114.8,3114.5,3.0]
[1731749616738,0.7909,3114.9,3114.5,3.0]
[1731749617050,4.00129,3114.9,3114.3,3.0]
[1731749617255,4.00129,3114.9,3114.3,3.61060075]
[1731749617575,4.00129,3114.9,3114.4,0.55]
[1731749619193,0.7909,3114.9,3114.4,3.76088]
[1731749619352,0.7909,3114.9,3114.6,0.55]
[1731749619973,4.00129,3114.9,3114.6,0.55]
[1731749620454,0.7909,3114.9,3114.6,0.55]
[1731749620650,3.21048,3114.8,3114.5,0.55]
[1731749621992,0.7909,3114.7,3114.4,0.55]
[1731749622200,3.21078,3114.5,3113.2,2.89493751]
[1731749622352,4.00206,3114.2,3113.8,1.4871425]
[1731749622551,4.00206,3114.2,3113.8,1.283575]
[1731749622797,4.00206,3114.2,3113.7,35.0]
[1731749623488,0.7909,3114.2,3113.7,35.0]
[1731749624296,0.7909,3114.2,3113.8,0.55]
[1731749626077,3.2112,3114.1,3113.8,0.55]
[1731749627520,0.7909,3114.2,3113.8,0.55]
[1731749627521,0.7909,3113.9,3113.8,0.55]
[1731749628016,4.00237,3113.9,3113.5,3.55]
[1731749628318,0.7909,3113.9,3113.7,0.55]
[1731749628484,0.7909,3114.1,3113.7,0.55]
[1731749629315,0.7532,3114.5,3114.3,3.21091]
[1731749629619,0.7532,3115.2,3115.0,0.55]
[1731749631122,0.7532,3115.2,3114.6,0.55]
[1731749631277,0.7532,3115.2,3114.8,3.76039]
[1731749631820,3.96335,3115.2,3114.8,0.55]
[1731749632117,3.96335,3115.2,3114.5,38.21075]
[1731749632118,3.21017,3115.1,3114.6,0.55]
[1731749632328,3.21017,3115.1,3114.5,0.55]
[1731749632492,3.21017,3115.1,3114.6,0.23931346]
[1731749632813,3.21027,3115.0,3114.8,0.55]
[1731749633180,3.96328,3115.2,3114.8,0.55]
[1731749633377,3.21023,3115.1,3114.8,0.55]
[1731749634313,3.21028,3115.0,3114.8,0.55]
[1731749634486,3.99377,3114.9,3114.8,0.55]
[1731749635782,0.7834,3114.9,3114.8,0.55]
[1731749636295,0.7834,3114.9,3114.6,0.55]
[1731749638403,0.7834,3114.9,3114.7,3.2105]
[1731749638610,0.7834,3115.3,3114.8,3.7604]
[1731749638936,0.7834,3115.3,3114.8,3.82460287]
[1731749639239,0.7834,3115.3,3115.0,0.55]
[1731749640510,0.7834,3115.3,3115.0,3.76022]
[1731749640691,3.33,3115.5,3115.0,3.76022]
[1731749640896,3.885,3115.5,3115.0,3.76022]
[1731749642539,3.885,3115.5,3114.9,0.55]
[1731749643140,3.885,3115.5,3114.9,3.76036]
[1731749643141,4.44,3115.5,3114.9,3.76036]
[1731749644636,7.64979,3115.5,3114.9,0.55]
[1731749644806,4.44,3115.5,3114.9,3.76036]
[1731749645017,8.20478,3115.5,3114.9,0.55]
[1731749645225,3.21018,3115.1,3114.4,3.97216]
[1731749645423,3.21018,3115.1,3114.5,3.0]
[1731749646428,3.21027,3115.0,3114.5,3.0]
[1731749646807,3.21027,3115.0,3114.6,0.55]
[1731749647149,3.21027,3115.0,3114.5,0.55]
[1731749647150,3.2104,3114.9,3114.5,0.55]
[1731749647312,3.2104,3114.9,3114.3,6.76099]
[1731749647516,3.2104,3114.9,3114.8,1.55]
[1731749648010,4.31484,3114.9,3114.8,1.55]
[1731749649414,3.9938,3114.9,3114.8,1.55]
[1731749649815,3.9938,3114.9,3114.8,1.0]
[1731749650215,4.0038,3114.9,3114.8,1.0]
[1731749652112,0.7834,3114.9,3114.8,1.0]
[1731749652319,0.7834,3114.9,3114.8,1.55]
[1731749652737,0.8166,3115.1,3114.9,0.55]
[1731749653226,3.21027,3115.0,3114.9,0.55]
[1731749654244,3.21037,3114.9,3114.8,1.0]
[1731749654566,3.99927,3114.9,3114.8,1.0]
[1731749657252,4.00927,3114.9,3114.8,1.0]
[1731749660841,3.99927,3114.9,3114.8,1.0]
[1731749663370,3.99927,3114.9,3114.8,1.55]
[1731749663578,3.21037,3114.9,3114.8,1.55]
[1731749664031,3.21008,3115.2,3114.9,0.55]
[1731749664231,15.71371733,3115.5,3114.9,0.55]
[1731749664465,3.21008,3115.2,3114.9,0.55]
[1731749665480,8.75978,3115.5,3115.1,0.55]
[1731749665684,5.55,3115.5,3115.1,0.55]
[1731749666692,6.105,3115.5,3115.1,4.214246]
[1731749666975,6.105,3115.5,3115.1,1.004086]
[1731749668182,6.105,3115.5,3115.1,4.214246]
[1731749668791,6.66,3115.5,3115.1,4.214246]
[1731749669290,9.86977,3115.5,3115.1,1.004086]
[1731749669497,6.66,3115.5,3115.1,1.004086]
[1731749670258,6.66,3115.5,3115.1,4.214246]
[1731749670458,6.66,3115.5,3115.4,1.3231]
[1731749670998,7.215,3115.5,3115.4,1.3231]
[1731749673174,7.77,3115.5,3115.4,7.53296]
[1731749674210,7.77,3115.5,3115.4,7.5971494]
[1731749674359,7.77,3115.5,3115.4,8.0512354]
[1731749675215,8.325,3115.5,3115.4,8.0512354]
[1731749677483,8.88,3115.5,3115.4,8.0512354]
[1731749679505,9.435,3115.5,3115.4,8.0512354]
[1731749680421,9.435,3115.5,3115.4,7.987046]
[1731749680835,9.435,3115.5,3115.4,1.777186]
[1731749681130,9.435,3115.5,3115.4,1.3231]
[1731749681281,9.435,3115.5,3115.4,4.85356]
[1731749681697,9.99,3115.5,3115.4,4.85356]
[1731749682110,9.99,3115.5,3115.4,7.85356]
[1731749683324,9.99,3115.5,3115.4,7.91775052]
[1731749683904,10.545,3115.5,3115.4,7.85356]
[1731749684224,10.545,3115.5,3115.4,7.91774888]
[1731749685231,10.545,3115.5,3115.4,7.91774429]
[1731749685988,11.1,3115.5,3115.4,7.91774429]
[1731749686270,11.1,3115.5,3115.4,7.85356]
[1731749688106,11.655,3115.5,3115.4,7.85356]
[1731749688628,11.655,3115.5,3115.4,7.53296]
[1731749690167,12.21,3115.5,3115.4,7.53296]
[1731749691326,12.21,3115.5,3115.4,7.85356]
[1731749692238,12.765,3115.5,3115.4,7.85356]
[1731749693455,12.765,3115.5,3115.4,8.01394309]
[1731749693655,12.765,3115.5,3115.4,7.69334309]
[1731749694158,12.765,3115.5,3115.4,7.53296]
[1731749694359,13.32,3115.5,3115.4,7.69334633]
[1731749695470,13.32,3115.5,3114.8,1.7914]
[1731749695670,3.21003,3115.3,3114.8,1.0]
[1731749696858,3.21003,3115.3,3114.9,0.55]
[1731749697225,3.21009,3115.2,3114.9,0.55]
[1731749697657,3.21003,3115.3,3114.9,0.55]
[1731749697875,3.21017,3115.1,3114.8,1.0]
[1731749698174,0.8054,3115.0,3114.8,1.0]
[1731749698880,0.8054,3115.0,3114.9,0.23976092]
[1731749699579,0.8054,3115.0,3114.9,0.78976092]
[1731749700254,0.8054,3115.0,3114.9,0.78975474]
[1731749701311,4.01567,3115.0,3114.9,0.23975474]
[1731749701482,4.01567,3115.0,3114.8,1.0]
[1731749701483,3.21037,3114.9,3114.8,1.0]
[1731749702897,0.8054,3115.0,3114.9,0.55]
[1731749703118,0.7771,3115.3,3114.9,0.55]
[1731749703549,3.20988,3115.4,3115.1,0.55]
[1731749703947,3.21003,3115.3,3115.0,0.55]
[1731749704172,3.21007,3115.2,3114.9,0.55]
[1731749704375,3.21007,3115.2,3115.1,0.55]
[1731749704886,3.21007,3115.2,3114.8,1.0]
[1731749704887,3.21007,3115.2,3114.9,0.55]
[1731749705087,3.21007,3115.2,3115.0,0.23947918]
[1731749705301,3.21007,3115.2,3115.1,0.55]
[1731749705854,3.20988,3115.4,3114.9,0.55]
[1731749706461,3.20988,3115.4,3115.1,0.55]
[1731749707354,3.20988,3115.4,3115.0,0.55]
[1731749707550,3.20996,3115.3,3115.0,0.55]
[1731749708221,3.21011,3115.2,3115.0,0.55]
[1731749710103,3.20988,3115.4,3115.0,0.55]
[1731749714289,13.875,3115.5,3115.4,3.20986]
[1731749714599,14.43,3115.5,3115.4,6.75986]
[1731749714806,14.43,3115.5,3115.4,7.51086]
[1731749715880,14.43,3115.5,3115.4,7.8956478]
[1731749716081,14.43,3115.5,3115.4,8.32234549]
[1731749716275,14.43,3115.5,3115.4,8.25815769]
[1731749716670,14.985,3115.5,3115.4,8.25815769]
[1731749717209,14.985,3115.5,3115.4,8.41853747]
[1731749717381,14.985,3115.5,3115.4,8.25815769]
[1731749717872,14.985,3115.5,3115.4,43.25815769]
[1731749719016,15.54,3115.5,3115.4,43.41853899]
[1731749719722,15.54,3115.5,3115.4,43.25815769]
[1731749720075,15.54,3115.5,3115.4,43.41853741]
[1731749720277,15.54,3115.5,3115.4,43.25815769]
[1731749721203,16.095,3115.5,3115.4,43.25815769]
[1731749723113,16.65,3115.5,3115.4,43.25815769]
[1731749723281,16.65,3115.5,3115.4,43.41853718]
[1731749724022,16.65,3115.5,3115.4,43.41853736]
[1731749724226,16.65,3115.5,3115.4,43.41853781]
[1731749724390,16.65,3115.5,3115.4,43.42853781]
[1731749724715,16.1,3115.5,3115.4,46.81353781]
[1731749725129,5.38759271,3115.5,3115.4,46.81353781]
[1731749725276,2.775,3116.3,3116.2,7.29063]
[1731749725627,2.775,3116.3,3116.2,10.86042222]
[1731749725778,2.775,3116.3,3116.2,10.70009469]
[1731749725974,2.775,3116.3,3116.2,10.86041895]
[1731749726191,2.775,3116.3,3116.2,45.86041895]
[1731749726619,2.775,3116.3,3116.2,46.41041895]
[1731749727095,3.33,3116.3,3116.2,46.41041895]
[1731749729393,3.885,3116.3,3116.2,46.41041895]
[1731749729787,3.885,3116.3,3116.2,45.85041895]
[1731749730024,3.885,3116.3,3116.2,35.67485144]
[1731749730326,3.885,3116.3,3116.2,35.51452718]
[1731749730827,3.885,3116.3,3115.6,0.7991]
[1731749730828,0.7586,3116.2,3115.5,3.20968]
[1731749731031,3.20918,3116.1,3115.5,3.20968]
[1731749731381,3.20918,3116.1,3115.1,0.3206]
[1731749731382,3.20931,3116.0,3115.6,35.0]
[1731749731638,3.20925,3116.0,3115.6,35.0]
[1731749732318,3.76414,3116.1,3115.5,3.20973]
[1731749732517,3.76414,3116.1,3115.6,3.0]
[1731749733025,3.20925,3116.0,3115.4,3.0]
[1731749733233,3.76414,3116.1,3115.5,0.06418711]
[1731749733791,4.31914,3116.1,3115.7,3.0]
[1731749735402,1.11,3116.1,3115.9,3.20933]
[1731749735823,1.665,3116.1,3116.0,3.20924]
[1731749736627,1.665,3116.1,3115.8,0.06417997]
[1731749736628,1.665,3116.1,3115.9,3.0]
[1731749737730,1.665,3116.1,3116.0,3.20924]
[1731749737906,2.22,3116.1,3116.0,3.20924]
[1731749738525,2.22,3116.1,3116.0,6.20924]
[1731749739465,2.22,3116.1,3115.9,3.0]
[1731749739757,2.22,3116.1,3115.9,6.20932]
[1731749740059,2.775,3116.1,3116.0,6.20924]
[1731749740268,2.775,3116.1,3116.0,0.55]
[1731749740437,2.775,3116.1,3115.7,3.0]
[1731749740634,0.7552,3116.0,3115.7,3.0]
[1731749741434,3.96445,3116.0,3115.7,3.0]
[1731749742265,4.51945,3116.0,3115.7,3.0]
[1731749742559,4.51945,3116.0,3115.4,3.0]
[1731749742761,4.51945,3116.0,3115.4,38.0]
[1731749742972,4.51945,3116.0,3115.5,0.55]
[1731749743180,1.3102,3116.0,3115.7,0.55]
[1731749744149,1.3102,3116.0,3115.7,0.61418369]
[1731749744352,1.8652,3116.0,3115.7,0.55]
[1731749744872,1.11,3116.0,3115.9,3.0]
[1731749745466,1.11,3116.0,3115.7,6.82366371]
[1731749746029,0.7552,3115.9,3115.7,3.61418371]
[1731749746257,0.7552,3115.9,3115.7,3.55]
[1731749746468,1.3102,3115.9,3115.7,3.55]
[1731749748583,1.8652,3115.9,3115.7,3.55]
[1731749749537,1.8652,3115.9,3115.7,3.7595]
[1731749750673,2.4202,3115.9,3115.7,3.7595]
[1731749751277,1.665,3115.9,3115.7,3.7595]
[1731749751934,1.665,3115.9,3115.7,3.82368481]
[1731749752134,1.665,3115.9,3115.8,3.0]
[1731749752334,1.665,3115.9,3115.8,6.20944]
[1731749752874,2.22,3115.9,3115.8,6.75944]
[1731749755535,2.775,3115.9,3115.8,8.11598497]
[1731749755784,2.775,3115.9,3115.8,45.95674151]
[1731749756070,2.775,3115.9,3115.8,46.61224887]
[1731749757048,2.775,3115.9,3115.8,46.6222299]
[1731749757780,3.33,3115.9,3115.8,46.6222299]
[1731749759580,3.33,3115.9,3115.8,47.73148247]
[1731749759733,3.33,3115.9,3115.8,49.9972299]
[1731749759939,2.775,3116.1,3116.0,7.93074]
[1731749760174,2.775,3116.1,3116.0,8.09108503]
[1731749760473,2.775,3116.1,3116.0,7.93074]
[1731749760647,2.775,3116.1,3116.0,8.09106247]
[1731749760848,2.775,3116.1,3116.0,43.09106247]
[1731749761947,3.33,3116.1,3116.0,43.09106247]
[1731749762455,3.33,3116.1,3116.0,43.09106084]
[1731749762788,3.885,3116.3,3116.2,4.38053]
[1731749762941,0.67606,3116.3,3116.2,15.46933391]
[1731749763263,0.7798,3117.6,3116.7,0.8409]
[1731749763449,0.7798,3117.6,3116.7,42.65465791]
[1731749763777,0.7798,3117.6,3116.7,45.97525791]
[1731749763981,3.87917277,3116.8,3116.7,45.97525791]
[1731749764153,3.87917277,3116.8,3116.7,45.98525791]
[1731749766066,4.43417277,3116.8,3116.7,45.82495751]
[1731749766299,4.43417277,3116.8,3116.7,45.90377595]
[1731749766684,4.43417277,3116.8,3116.7,45.89377595]
[1731749768086,4.43417277,3116.8,3116.7,46.54270812]
[1731749768283,4.98917277,3116.8,3116.7,46.38240663]
[1731749768509,4.98917277,3116.8,3116.7,46.54270541]
[1731749768809,4.98917277,3116.8,3116.7,46.37240663]
[1731749769106,4.98917277,3116.8,3116.7,44.99150663]
[1731749769609,4.98917277,3116.8,3116.7,41.44742074]
[1731749770374,5.54417277,3116.8,3116.7,41.99742074]
[1731749771984,5.54417277,3116.8,3116.7,44.90235825]
[1731749772180,5.54417277,3116.8,3116.7,45.70105825]
[1731749772694,6.09917277,3116.8,3116.7,45.70105825]
[1731749772899,6.09917277,3116.8,3116.7,45.46215751]
[1731749773084,6.09917277,3116.8,3116.7,45.86132208]
[1731749773298,6.09917277,3116.8,3116.7,46.18192208]
[1731749773496,6.09917277,3116.8,3116.7,46.18192051]
[1731749773894,6.09917277,3116.8,3116.7,46.02162248]
[1731749774113,6.09917277,3116.8,3116.7,46.18192135]
[1731749774910,6.65417277,3116.8,3116.7,46.56408382]
[1731749776182,6.65417277,3116.8,3116.7,46.40378495]
[1731749776410,6.65417277,3116.8,3116.7,45.78275751]
[1731749776583,6.65417277,3116.8,3116.7,46.40397224]
[1731749777093,7.20917277,3116.8,3116.7,46.40397224]
[1731749777295,7.20917277,3116.8,3116.7,46.56427144]
[1731749777498,7.20917277,3116.8,3116.7,46.57427144]
[1731749779210,7.20917277,3116.8,3116.7,49.94927144]
[1731749779380,7.76417277,3116.8,3116.7,49.94927144]
[1731749780013,7.76417277,3116.8,3116.7,49.32803672]
[1731749780209,7.76417277,3116.8,3116.7,49.71045201]
[1731749780414,2.95154277,3116.8,3116.7,50.09285025]
[1731749780619,1.11,3116.9,3116.8,10.13341]
[1731749780833,0.7504,3118.6,3117.6,0.55]
[1731749781123,0.7504,3118.2,3117.8,0.55]
[1731749781290,0.7504,3118.2,3117.7,35.0]
[1731749781618,0.7504,3118.2,3117.3,3.0]
[1731749781619,0.7504,3117.8,3117.3,3.0]
[1731749781980,0.7504,3117.7,3117.4,35.0]
[1731749782422,3.20749,3117.7,3117.4,35.0]
[1731749782585,0.7504,3117.6,3117.1,6.2081]
[1731749782789,0.7504,3117.6,3117.3,3.0]
[1731749782993,0.7504,3117.6,3117.3,35.0]
[1731749783322,0.7504,3117.6,3117.4,3.0]
[1731749783688,1.3054,3117.6,3117.4,3.0]
[1731749784621,1.3054,3117.6,3117.4,6.2078]
[1731749785134,1.3054,3117.6,3117.5,6.20769]
[1731749785135,0.555,3117.6,3117.5,6.20769]
[1731749785449,0.555,3117.6,3117.5,6.27183694]
[1731749785589,0.555,3117.6,3117.5,6.20769]
[1731749785782,1.11,3117.6,3117.5,6.27183763]
[1731749785983,1.11,3117.6,3117.5,6.20769]
[1731749786325,1.11,3117.6,3117.5,6.9821139]
[1731749786933,1.11,3117.6,3117.5,6.82183803]
[1731749787100,1.11,3117.6,3117.5,6.91796369]
[1731749787888,1.665,3117.6,3117.5,6.91796369]
[1731749788305,1.665,3117.6,3117.5,44.8129012]
[1731749788594,1.665,3117.6,3117.5,44.8229012]
[1731749789097,1.665,3117.6,3117.5,45.1535012]
[1731749789098,0.74682724,3117.6,3117.5,45.1535012]
[1731749789308,0.74682724,3117.6,3117.5,45.79299955]
[1731749789898,1.30182724,3117.6,3117.5,45.79299955]
[1731749790318,1.30182724,3117.6,3117.5,45.63272586]
[1731749790640,1.30182724,3117.6,3117.5,45.79297573]
[1731749791189,1.30182724,3117.6,3117.5,42.55743822]
[1731749791715,1.30182724,3117.6,3117.5,45.45237573]
[1731749792116,1.85682724,3117.6,3117.5,45.45237573]
[1731749792590,1.85682724,3117.6,3117.5,45.46237573]
[1731749793437,1.85682724,3117.6,3117.5,46.21827573]
[1731749793601,1.85682724,3117.6,3117.5,46.06802586]
[1731749793797,1.85682724,3117.6,3117.5,46.3642212]
[1731749794442,2.41182724,3117.6,3117.5,46.3642212]
[1731749795303,2.41182724,3117.6,3117.5,46.36421904]
[1731749795503,2.41182724,3117.6,3117.5,46.68481904]
[1731749796460,2.96682724,3117.6,3117.5,46.68481904]
[1731749796600,2.96682724,3117.6,3117.5,35.16025229]
[1731749796800,2.96682724,3117.6,3117.5,35.0]
[1731749798129,2.96682724,3117.6,3117.5,38.0]
[1731749798501,3.52182724,3117.6,3117.5,38.0]
[1731749798930,3.52182724,3117.6,3117.5,41.75769]
[1731749799142,3.52182724,3117.6,3117.5,38.55]
[1731749799738,3.52182724,3117.6,3117.5,41.75769]
[1731749800572,4.07682724,3117.6,3117.5,41.75769]
[1731749802813,4.63182724,3117.6,3117.5,41.75769]
[1731749802970,4.63182724,3117.6,3117.5,41.91795879]
[1731749803329,4.63182724,3117.6,3117.5,44.8128963]
[1731749804053,4.63182724,3117.6,3117.5,44.81289517]
[1731749804427,4.63182724,3117.6,3117.5,45.56439517]
[1731749804968,5.18682724,3117.6,3117.5,45.56439517]
[1731749805958,5.18682724,3117.6,3117.5,45.57439517]
[1731749806843,5.18682724,3117.6,3117.5,44.82289517]
[1731749807163,5.74182724,3117.6,3117.5,44.82289517]
[1731749807530,5.74182724,3117.6,3117.5,44.66262751]
[1731749807731,5.74182724,3117.6,3117.5,44.82288412]
[1731749808674,5.74182724,3117.6,3117.5,44.95976658]
[1731749809031,6.29682724,3117.6,3117.5,44.95976658]
[1731749809534,6.29682724,3117.6,3117.5,44.94976658]
[1731749809974,6.29682724,3117.6,3117.5,44.95976658]
[1731749811331,6.85182724,3117.6,3117.5,44.81288412]
[1731749811536,6.85182724,3117.6,3117.5,41.36794661]
[1731749812737,6.85182724,3117.6,3117.5,41.91794661]
[1731749812933,6.85182724,3117.6,3117.5,41.75769]